fUSD/lending_fUSD_20250510
["ID","MTS","AMOUNT","RATE_DAILY","PERIOD"]
[360606935,1746900640936,-870.71,0.00019178,2]
[360606936,1746900640947,-870.71,0.00019178,2]
[360606937,1746900640958,-870.71,0.00019178,2]
[360606938,1746900640970,-648.51,0.00019178,2]
[360606939,1746900640979,-648.51,0.00019178,2]
[360606940,1746900640988,-648.51,0.00019178,2]
[360606941,1746900640998,-648.51,0.00019178,2]
[360606942,1746900641007,-648.51,0.00019178,2]
[360606943,1746900641016,-648.51,0.00019178,2]
[360606944,1746900641025,-648.51,0.00019178,2]
[360606945,1746900641034,-3310.87,0.00019178,2]
[360606946,1746900641044,-3310.87,0.00019178,2]
[360606947,1746900641053,-3310.87,0.00019178,2]
[360606948,1746900641062,-2488.93,0.00019178,2]
[360606949,1746900641072,-2488.93,0.00019178,2]
[360606950,1746900641081,-2488.93,0.00019178,2]
[360606951,1746900641090,-2488.93,0.00019178,2]
[360606952,1746900641100,-2488.93,0.00019178,2]
[360606953,1746900641109,-2488.93,0.00019178,2]
[360606954,1746900641119,-679.49,0.00019178,2]
[360606955,1746900641128,-2488.93,0.00019178,2]
[360606956,1746900641138,-679.49,0.00019178,2]
[360606957,1746900641147,-679.49,0.00019178,2]
[360606958,1746900641156,-400.0,0.00019178,2]
[360606959,1746900641166,-400.0,0.00019178,2]
[360606960,1746900641175,-400.0,0.00019178,2]
[360606961,1746900641185,-547.21197637,0.00019178,2]
[360606962,1746900641194,-433.56,0.00019178,2]
[360606963,1746900641205,-400.0,0.00019178,2]
[360606964,1746900641215,-400.0,0.00019178,2]
[360606965,1746900641224,-433.56,0.00019178,2]
[360606966,1746900641233,-379.06,0.00019178,2]
[360606967,1746900641243,-499.81,0.00019178,2]
[360606968,1746900641253,-433.56,0.00019178,2]
[360606969,1746900641269,-400.0,0.00019178,2]
[360606970,1746900641278,-400.0,0.00019178,2]
[360606971,1746900641288,-400.0,0.00019178,2]
[360606972,1746900641297,-400.0,0.00019178,2]
[360606973,1746900641307,-3108.48,0.00019178,2]
[360606974,1746900641315,-3108.48,0.00019178,2]
[360606975,1746900641325,-3108.48,0.00019178,2]
[360606976,1746900641334,-400.0,0.00019178,2]
[360606977,1746900641345,-400.0,0.00019178,2]
[360606978,1746900641354,-400.0,0.00019178,2]
[360606979,1746900641364,-8355.37,0.00019178,2]
[360606980,1746900641373,-8355.37,0.00019178,2]
[360606981,1746900641383,-8355.37,0.00019178,2]
[360606982,1746900641393,-400.0,0.00019178,2]
[360606983,1746900641402,-400.0,0.00019178,2]
[360606984,1746900641411,-400.0,0.00019178,2]
[360606985,1746900641420,-400.0,0.00019178,2]
[360606986,1746900641431,-400.0,0.00019178,2]
[360606987,1746900641441,-330.80539564,0.00019178,2]
[360606988,1746900641450,-400.0,0.00019178,2]
[360606989,1746900641460,-400.0,0.00019178,2]
[360606990,1746900641470,-400.0,0.00019178,2]
[360606991,1746900641479,-493.58,0.00019178,2]
[360606992,1746900641488,-216.83351372,0.00019178,2]
[360606993,1746900641498,-543.62,0.00019178,2]
[360606994,1746900641507,-543.62,0.00019178,2]
[360606995,1746900641516,-543.62,0.00019178,2]
[360606996,1746900641526,-543.62,0.00019178,2]
[360606997,1746900641536,-543.62,0.00019178,2]
[360606998,1746900641546,-543.62,0.00019178,2]
[360606999,1746900641555,-543.62,0.00019178,2]
[360607000,1746900641566,-400.0,0.00019178,2]
[360607001,1746900641575,-400.0,0.00019178,2]
[360607002,1746900641585,-400.0,0.00019178,2]
[360607003,1746900641595,-400.0,0.00019178,2]
[360607004,1746900641604,-400.0,0.00019178,2]
[360607005,1746900641621,-400.0,0.00019178,2]
[360607006,1746900641634,-400.0,0.00019178,2]
[360607007,1746900641644,-400.0,0.00019178,2]
[360607008,1746900641654,-400.0,0.00019178,2]
[360607009,1746900641665,-230.26844809,0.00019178,2]
[360607010,1746900641677,-400.0,0.00019178,2]
[360607011,1746900641687,-400.0,0.00019178,2]
[360607012,1746900641696,-400.0,0.00019178,2]
[360607013,1746900641707,-400.0,0.00019178,2]
[360607014,1746900641718,-221.65,0.00019178,2]
[360607015,1746900641728,-400.0,0.00019178,2]
[360607016,1746900641739,-400.0,0.00019178,2]
[360607017,1746900641750,-400.0,0.00019178,2]
[360607018,1746900641760,-400.0,0.00019178,2]
[360607019,1746900641770,-400.0,0.00019178,2]
[360607020,1746900641780,-405.82,0.00019178,2]
[360607021,1746900641789,-405.82,0.00019178,2]
[360607022,1746900641798,-405.82,0.00019178,2]
[360607023,1746900641808,-1525.55,0.00019178,2]
[360607024,1746900641817,-1525.55,0.00019178,2]
[360607025,1746900641826,-997.89,0.00019178,2]
[360607026,1746900641836,-400.0,0.00019178,2]
[360607027,1746900641846,-1525.55,0.00019178,2]
[360607028,1746900641855,-997.89,0.00019178,2]
[360607029,1746900641864,-400.0,0.00019178,2]
[360607030,1746900641874,-1525.55,0.00019178,2]
[360607031,1746900641883,-400.0,0.00019178,2]
[360607032,1746900641892,-1525.55,0.00019178,2]
[360607033,1746900641901,-997.89,0.00019178,2]
[360607034,1746900641911,-400.0,0.00019178,2]
[360607035,1746900641920,-997.89,0.00019178,2]
[360607036,1746900641930,-1525.55,0.00019178,2]
[360607037,1746900641940,-400.0,0.00019178,2]
[360607038,1746900641949,-997.89,0.00019178,2]
[360607039,1746900641959,-1525.55,0.00019178,2]
[360607040,1746900641970,-400.0,0.00019178,2]
[360607041,1746900641980,-997.89,0.00019178,2]
[360607042,1746900641989,-500.0,0.00019178,2]
[360607043,1746900641999,-500.0,0.00019178,2]
[360607044,1746900642008,-500.0,0.00019178,2]
[360607045,1746900642018,-1191.7,0.00019178,2]
[360607046,1746900642028,-500.0,0.00019178,2]
[360607047,1746900642038,-500.0,0.00019178,2]
[360607048,1746900642048,-500.0,0.00019178,2]
[360607049,1746900642058,-427.82,0.00019178,2]
[360607050,1746900642067,-500.0,0.00019178,2]
[360607051,1746900642077,-500.0,0.00019178,2]
[360607052,1746900642086,-1191.7,0.00019178,2]
[360607053,1746900642096,-500.0,0.00019178,2]
[360607054,1746900642105,-500.0,0.00019178,2]
[360607055,1746900642114,-1191.7,0.00019178,2]
[360607056,1746900642124,-500.0,0.00019178,2]
[360607057,1746900642133,-500.0,0.00019178,2]
[360607058,1746900642142,-500.0,0.00019178,2]
[360607059,1746900642152,-500.0,0.00019178,2]
[360607060,1746900642161,-500.0,0.00019178,2]
[360607061,1746900642171,-500.0,0.00019178,2]
[360607062,1746900642181,-400.0,0.00019178,2]
[360607063,1746900642191,-500.0,0.00019178,2]
[360607064,1746900642200,-560.08220278,0.00019178,2]
[360607065,1746900642210,-235.0658445,0.00019178,2]
[360607066,1746900642219,-400.0,0.00019178,2]
[360607067,1746900642228,-400.0,0.00019178,2]
[360607068,1746900642238,-400.0,0.00019178,2]
[360607069,1746900642247,-400.0,0.00019178,2]
[360607070,1746900642256,-400.0,0.00019178,2]
[360607071,1746900642266,-400.0,0.00019178,2]
[360607072,1746900642275,-500.0,0.00019178,2]
[360607073,1746900642285,-400.0,0.00019178,2]
[360607074,1746900642294,-500.0,0.00019178,2]
[360607075,1746900642303,-500.0,0.00019178,2]
[360607076,1746900642313,-500.0,0.00019178,2]
[360607077,1746900642323,-500.0,0.00019178,2]
[360607078,1746900642333,-500.0,0.00019178,2]
[360607079,1746900642343,-500.0,0.00019178,2]
[360607080,1746900642352,-400.0,0.00019178,2]
[360607081,1746900642361,-400.0,0.00019178,2]
[360607082,1746900642371,-392.36,0.00019178,2]
[360607083,1746900642380,-783.87,0.00019178,2]
[360607084,1746900642389,-783.87,0.00019178,2]
[360607085,1746900642399,-783.87,0.00019178,2]
[360607086,1746900642408,-783.87,0.00019178,2]
[360607087,1746900642418,-783.87,0.00019178,2]
[360607088,1746900642427,-783.87,0.00019178,2]
[360607089,1746900642437,-783.87,0.00019178,2]
[360607090,1746900642447,-605.38,0.00019178,2]
[360607091,1746900642457,-605.38,0.00019178,2]
[360607092,1746900642467,-605.38,0.00019178,2]
[360607093,1746900642476,-400.0,0.00019178,2]
[360607094,1746900642485,-605.38,0.00019178,2]
[360607095,1746900642495,-400.0,0.00019178,2]
[360607096,1746900642504,-605.38,0.00019178,2]
[360607097,1746900642513,-400.0,0.00019178,2]
[360607098,1746900642523,-605.38,0.00019178,2]
[360607099,1746900642532,-400.0,0.00019178,2]
[360607100,1746900642542,-735.1,0.00019178,2]
[360607101,1746900642551,-400.0,0.00019178,2]
[360607102,1746900642561,-400.0,0.00019178,2]
[360607103,1746900642570,-735.1,0.00019178,2]
[360607104,1746900642579,-735.1,0.00019178,2]
[360607105,1746900642589,-735.1,0.00019178,2]
[360607106,1746900642599,-735.1,0.00019178,2]
[360607107,1746900642609,-735.1,0.00019178,2]
[360607108,1746900642619,-1708.9,0.00019178,2]
[360607109,1746900642628,-1708.9,0.00019178,2]
[360607110,1746900642638,-1708.9,0.00019178,2]
[360607112,1746900642647,-1708.9,0.00019178,2]
[360607113,1746900642657,-1708.9,0.00019178,2]
[360607114,1746900642669,-1708.9,0.00019178,2]
[360607115,1746900642681,-1708.9,0.00019178,2]
[360607116,1746900642693,-151.26282465,0.00019178,2]
[360607117,1746900642702,-420.41,0.00019178,2]
[360607118,1746900642713,-420.41,0.00019178,2]
[360607119,1746900642724,-420.41,0.00019178,2]
[360607120,1746900642734,-560.8297172,0.00019178,2]
[360607121,1746900642745,-1019.74,0.00019178,2]
[360607122,1746900642756,-1019.74,0.00019178,2]
[360607123,1746900642766,-1019.74,0.00019178,2]
[360607124,1746900642776,-400.0,0.00019178,2]
[360607125,1746900642786,-1019.74,0.00019178,2]
[360607126,1746900642795,-400.0,0.00019178,2]
[360607127,1746900642805,-400.0,0.00019178,2]
[360607128,1746900642815,-1019.74,0.00019178,2]
[360607130,1746900642825,-400.0,0.00019178,2]
[360607132,1746900642834,-400.0,0.00019178,2]
[360607134,1746900642844,-1019.74,0.00019178,2]
[360607135,1746900642854,-400.0,0.00019178,2]
[360607137,1746900642864,-1019.74,0.00019178,2]
[360607139,1746900642874,-400.0,0.00019178,2]
[360607141,1746900642884,-400.0,0.00019178,2]
[360607143,1746900642895,-477.33128308,0.00019178,2]
[360607144,1746900642905,-302.52564931,0.00019178,2]
[360607145,1746900642914,-400.0,0.00019178,2]
[360607146,1746900642924,-400.0,0.00019178,2]
[360607147,1746900642934,-400.0,0.00019178,2]
[360607148,1746900642944,-400.41089882,0.00019178,2]
[360607149,1746900642955,-576.33,0.00019178,2]
[360607150,1746900642964,-576.33,0.00019178,2]
[360607151,1746900642974,-400.0,0.00019178,2]
[360607152,1746900642983,-576.33,0.00019178,2]
[360607153,1746900642994,-400.0,0.00019178,2]
[360607154,1746900643004,-400.0,0.00019178,2]
[360607155,1746900643014,-405.33,0.00019178,2]
[360607156,1746900643024,-405.33,0.00019178,2]
[360607157,1746900643034,-405.33,0.00019178,2]
[360607158,1746900643044,-605.05129862,0.00019178,2]
[360607159,1746900643054,-405.33,0.00019178,2]
[360607160,1746900643064,-405.33,0.00019178,2]
[360607161,1746900643074,-405.33,0.00019178,2]
[360607162,1746900643084,-405.33,0.00019178,2]
[360607163,1746900643094,-450.0,0.00019178,2]
[360607164,1746900643106,-400.0,0.00019178,2]
[360607165,1746900643116,-400.0,0.00019178,2]
[360607166,1746900643125,-400.0,0.00019178,2]
[360607167,1746900643136,-400.0,0.00019178,2]
[360607168,1746900643146,-400.0,0.00019178,2]
[360607169,1746900643156,-400.0,0.00019178,2]
[360607170,1746900643166,-400.0,0.00019178,2]
[360607171,1746900643176,-400.0,0.00019178,2]
[360607172,1746900643185,-400.0,0.00019178,2]
[360607173,1746900643195,-445.42,0.00019178,2]
[360607174,1746900643206,-1468.4,0.00019178,2]
[360607175,1746900643216,-1468.4,0.00019178,2]
[360607176,1746900643225,-1468.4,0.00019178,2]
[360607177,1746900643236,-400.0,0.00019178,2]
[360607178,1746900643246,-400.0,0.00019178,2]
[360607179,1746900643255,-400.0,0.00019178,2]
[360607180,1746900643265,-400.0,0.00019178,2]
[360607181,1746900643274,-400.0,0.00019178,2]
[360607182,1746900643284,-151.26282466,0.00019178,2]
[360607183,1746900643293,-400.0,0.00019178,2]
[360607184,1746900643303,-161.764901,0.00019178,2]
[360607185,1746900643312,-161.764901,0.00019178,2]
[360607186,1746900643322,-1164.13,0.00019178,2]
[360607187,1746900643331,-1164.13,0.00019178,2]
[360607188,1746900643341,-1164.13,0.00019178,2]
[360607190,1746900643351,-1164.13,0.00019178,2]
[360607192,1746900643361,-1164.13,0.00019178,2]
[360607193,1746900643371,-1164.13,0.00019178,2]
[360607194,1746900643380,-1164.13,0.00019178,2]
[360607195,1746900643390,-400.0,0.00019178,2]
[360607196,1746900643400,-925.97,0.00019178,2]
[360607198,1746900643409,-402.02324365,0.00019178,2]
[360607199,1746900643419,-925.97,0.00019178,2]
[360607200,1746900643428,-925.97,0.00019178,2]
[360607201,1746900643438,-925.97,0.00019178,2]
[360607202,1746900643447,-925.97,0.00019178,2]
[360607203,1746900643459,-500.0,0.00019178,2]
[360607205,1746900643468,-500.0,0.00019178,2]
[360607207,1746900643477,-500.0,0.00019178,2]
[360607209,1746900643487,-500.0,0.00019178,2]
[360607211,1746900643496,-500.0,0.00019178,2]
[360607213,1746900643506,-500.0,0.00019178,2]
[360607214,1746900643515,-500.0,0.00019178,2]
[360607215,1746900643525,-925.97,0.00019178,2]
[360607216,1746900643534,-500.0,0.00019178,2]
[360607217,1746900643544,-500.0,0.00019178,2]
[360607218,1746900643555,-500.0,0.00019178,2]
[360607219,1746900643564,-500.0,0.00019178,2]
[360607220,1746900643575,-500.0,0.00019178,2]
[360607221,1746900643586,-500.0,0.00019178,2]
[360607222,1746900643596,-500.0,0.00019178,2]
[360607223,1746900643607,-500.0,0.00019178,2]
[360607224,1746900643618,-500.0,0.00019178,2]
[360607225,1746900643629,-925.97,0.00019178,2]
[360607226,1746900643639,-500.0,0.00019178,2]
[360607227,1746900643649,-500.0,0.00019178,2]
[360607228,1746900643659,-500.0,0.00019178,2]
[360607229,1746900643673,-500.0,0.00019178,2]
[360607230,1746900643683,-500.0,0.00019178,2]
[360607231,1746900643692,-500.0,0.00019178,2]
[360607232,1746900643704,-500.0,0.00019178,2]
[360607233,1746900643715,-500.0,0.00019178,2]
[360607234,1746900643724,-500.0,0.00019178,2]
[360607235,1746900643734,-500.0,0.00019178,2]
[360607236,1746900643745,-500.0,0.00019178,2]
[360607237,1746900643755,-500.0,0.00019178,2]
[360607238,1746900643765,-500.0,0.00019178,2]
[360607239,1746900643775,-500.0,0.00019178,2]
[360607240,1746900643785,-500.0,0.00019178,2]
[360607241,1746900643795,-500.0,0.00019178,2]
[360607242,1746900643805,-500.0,0.00019178,2]
[360607243,1746900643814,-500.0,0.00019178,2]
[360607244,1746900643824,-500.0,0.00019178,2]
[360607245,1746900643834,-500.0,0.00019178,2]
[360607246,1746900643843,-336.62600331,0.00019178,2]
[360607247,1746900643853,-500.0,0.00019178,2]
[360607248,1746900643863,-500.0,0.00019178,2]
[360607249,1746900643872,-500.0,0.00019178,2]
[360607250,1746900643882,-400.0,0.00019178,2]
[360607251,1746900643892,-500.0,0.00019178,2]
[360607252,1746900643901,-400.0,0.00019178,2]
[360607253,1746900643911,-400.0,0.00019178,2]
[360607254,1746900643922,-400.0,0.00019178,2]
[360607255,1746900643931,-161.0,0.00019178,2]
[360607256,1746900643942,-400.0,0.00019178,2]
[360607257,1746900643951,-400.0,0.00019178,2]
[360607258,1746900643962,-400.0,0.00019178,2]
[360607259,1746900643972,-400.0,0.00019178,2]
[360607260,1746900643981,-400.0,0.00019178,2]
[360607261,1746900643991,-400.0,0.00019178,2]
[360607262,1746900644001,-400.0,0.00019178,2]
[360607263,1746900644011,-400.0,0.00019178,2]
[360607264,1746900644020,-400.0,0.00019178,2]
[360607265,1746900644030,-151.0,0.00019178,2]
[360607266,1746900644040,-1500.0,0.00019178,2]
[360607267,1746900644050,-173.53,0.00019178,2]
[360607268,1746900644059,-150.04,0.00019178,2]
[360607269,1746900644069,-267.81,0.00019178,2]
[360607270,1746900644080,-166.55221696,0.00019238,2]
[360607271,1746900644089,-642.94570862,0.00019261,2]
[360607272,1746900644099,-158.73702646,0.00019284,2]
[360607273,1746900644108,-151.0,0.00019302,2]
[360607274,1746900644118,-151.0,0.00019307,2]
[360607275,1746900644128,-151.0,0.00019313,2]
[360607276,1746900644137,-798.0,0.00019334,2]
[360607277,1746900644147,-627.0,0.00019334,2]
[360607278,1746900644157,-583.0,0.00019334,2]
[360607279,1746900644167,-552.0,0.00019334,2]
[360607280,1746900644177,-917.0,0.00019334,2]
[360607281,1746900644187,-396.003,0.00019334,2]
[360607282,1746900644196,-1455.0,0.00019334,2]
[360607283,1746900644208,-642.94570862,0.00019352,2]
[360607284,1746900644217,-642.94570862,0.00019443,2]
[360607285,1746900644227,-151.0,0.00019454,2]
[360607286,1746900644273,-158.73702646,0.00019489,2]
[360607287,1746900644284,-181.37531073,0.00019489,2]
[360607288,1746900644295,-194.247408,0.00019489,2]
[360607289,1746900644304,-170.59198864,0.00019489,2]
[360607290,1746900644313,-642.94570862,0.00019535,2]
[360607291,1746900644322,-1156.1,0.00019554,2]
[360607292,1746900644332,-303.59,0.000196,2]
[360607293,1746900644342,-300.8,0.000196,2]
[360607294,1746900644352,-303.86,0.000196,2]
[360607295,1746900644361,-1156.1,0.000196,2]
[360607296,1746900644371,-153.0,0.00019622,2]
[360607297,1746900644380,-6813.0,0.00019622,2]
[360607298,1746900644390,-4024.0,0.00019622,2]
[360607299,1746900644399,-642.94570862,0.00019626,2]
[360607300,1746900644409,-400.0,0.00019628,2]
[360607301,1746900644418,-400.0,0.00019628,2]
[360607302,1746900644428,-997.89,0.00019628,2]
[360607303,1746900644437,-400.0,0.00019628,2]
[360607304,1746900644447,-605.38,0.00019628,2]
[360607305,1746900644459,-735.1,0.00019628,2]
[360607306,1746900644469,-400.0,0.00019628,2]
[360607307,1746900644479,-189.756,0.0001963,2]
[360607308,1746900644488,-150.0,0.0001963,2]
[360607309,1746900644498,-150.351,0.0001963,2]
[360607310,1746900644507,-154.614,0.0001963,2]
[360607311,1746900644516,-150.0,0.0001963,2]
[360607312,1746900644527,-300.0,0.00019632,2]
[360607313,1746900644538,-500.0,0.00019671,2]
[360607314,1746900644547,-300.11,0.00019681,2]
[360607315,1746900644558,-305.23,0.00019681,2]
[360607316,1746900644569,-158.73702646,0.00019695,2]
[360607317,1746900644579,-1156.1,0.000197,2]
[360607318,1746900644589,-303.82,0.00019708,2]
[360607319,1746900644598,-304.52,0.00019708,2]
[360607320,1746900644607,-305.01,0.00019713,2]
[360607321,1746900644617,-642.94570862,0.00019717,2]
[360607322,1746900644628,-150.0,0.00019725,2]
[360607323,1746900644637,-156.587,0.00019726,2]
[360607324,1746900644647,-150.0,0.00019745,2]
[360607325,1746900644657,-150.0,0.00019747,2]
[360607326,1746900644669,-150.0,0.00019754,2]
[360607327,1746900644678,-302.07,0.00019756,2]
[360607328,1746900644688,-150.0,0.00019761,2]
[360607329,1746900644697,-150.0,0.00019765,2]
[360607330,1746900644712,-150.0,0.00019768,2]
[360607331,1746900644723,-150.0,0.0001977,2]
[360607332,1746900644732,-150.0,0.0001977,2]
[360607333,1746900644744,-150.0,0.00019771,2]
[360607334,1746900644754,-500.0,0.00019779,2]
[360607335,1746900644764,-500.0,0.00019779,2]
[360607336,1746900644774,-500.0,0.00019779,2]
[360607337,1746900644785,-500.0,0.00019779,2]
[360607338,1746900644794,-500.0,0.00019779,2]
[360607339,1746900644804,-500.0,0.00019779,2]
[360607340,1746900644814,-500.0,0.00019779,2]
[360607341,1746900644823,-500.0,0.00019779,2]
[360607342,1746900644834,-500.0,0.00019779,2]
[360607343,1746900644843,-500.0,0.00019779,2]
[360607344,1746900644853,-500.0,0.00019779,2]
[360607345,1746900644863,-500.0,0.00019779,2]
[360607346,1746900644872,-500.0,0.00019779,2]
[360607347,1746900644881,-500.0,0.00019779,2]
[360607348,1746900644891,-500.0,0.00019779,2]
[360607349,1746900644900,-500.0,0.00019779,2]
[360607350,1746900644909,-500.0,0.00019779,2]
[360607351,1746900644918,-500.0,0.00019779,2]
[360607352,1746900644928,-500.0,0.00019779,2]
[360607353,1746900644937,-500.0,0.00019779,2]
[360607354,1746900644947,-500.0,0.00019779,2]
[360607355,1746900644959,-500.0,0.00019779,2]
[360607356,1746900644971,-500.0,0.00019779,2]
[360607357,1746900644980,-500.0,0.00019779,2]
[360607358,1746900644990,-500.0,0.00019779,2]
[360607359,1746900644999,-500.0,0.00019779,2]
[360607360,1746900645199,-500.0,0.00019779,2]
[360607361,1746900645253,-500.0,0.00019779,2]
[360607362,1746900645263,-500.0,0.00019779,2]
[360607363,1746900645272,-500.0,0.00019779,2]
[360607364,1746900645282,-500.0,0.00019779,2]
[360607365,1746900645291,-500.0,0.00019779,2]
[360607366,1746900645301,-150.0,0.00019785,2]
[360607367,1746900645310,-150.0,0.00019786,2]
[360607368,1746900645320,-150.0,0.00019789,2]
[360607369,1746900645329,-150.0,0.00019794,2]
[360607370,1746900645339,-642.94570862,0.00019809,2]
[360607371,1746900645348,-155.619054,0.00019814,2]
[360607372,1746900645358,-150.0,0.00019816,2]
[360607373,1746900645368,-150.0,0.00019817,2]
[360607374,1746900645377,-200.0,0.00019824,2]
[360607375,1746900645387,-250.0,0.00019824,2]
[360607376,1746900645396,-200.0,0.00019834,2]
[360607377,1746900645406,-150.0,0.00019839,2]
[360607378,1746900645415,-150.0,0.0001984,2]
[360607379,1746900645424,-150.0,0.0001985,2]
[360607380,1746900645434,-150.0,0.0001985,2]
[360607381,1746900645443,-150.0,0.00019854,2]
[360607382,1746900645453,-150.0,0.00019855,2]
[360607383,1746900645464,-150.0,0.00019857,2]
[360607384,1746900645474,-150.0,0.00019863,2]
[360607385,1746900645483,-200.0,0.00019876,2]
[360607386,1746900645493,-200.0,0.00019884,2]
[360607387,1746900645502,-150.0,0.00019885,2]
[360607388,1746900645512,-151.0,0.00019891,2]
[360607389,1746900645521,-12500.0,0.00019891,2]
[360607390,1746900645531,-150.0,0.00019893,2]
[360607391,1746900645540,-158.73702646,0.000199,2]
[360607392,1746900645549,-181.37531073,0.000199,2]
[360607393,1746900645559,-12500.0,0.000199,2]
[360607394,1746900645569,-194.247408,0.000199,2]
[360607395,1746900645579,-1138.0,0.000199,2]
[360607396,1746900645589,-170.59198864,0.000199,2]
[360607397,1746900645599,-1284.67632211,0.000199,2]
[360607398,1746900645608,-347.31953854,0.000199,2]
[360607399,1746900645618,-4973.81377751,0.000199,2]
[360607400,1746900645628,-642.94570862,0.000199,2]
[360607401,1746900645637,-766.83848204,0.000199,2]
[360607402,1746900645647,-151.0,0.00019901,2]
[360607403,1746900645657,-151.0,0.00019901,2]
[360607404,1746900645672,-488.11,0.00019901,2]
[360607405,1746900645682,-209.76,0.00019901,2]
[360607406,1746900645694,-400.0,0.00019901,2]
[360607407,1746900645704,-400.0,0.00019901,2]
[360607408,1746900645716,-400.0,0.00019901,2]
[360607409,1746900645726,-400.0,0.00019901,2]
[360607410,1746900645737,-442.68,0.00019901,2]
[360607411,1746900645747,-400.0,0.00019901,2]
[360607412,1746900645757,-1392.0,0.00019901,2]
[360607413,1746900645768,-1225.48,0.00019901,2]
[360607414,1746900645778,-400.0,0.00019901,2]
[360607415,1746900645788,-400.0,0.00019901,2]
[360607416,1746900645798,-161.36719565,0.00019901,2]
[360607417,1746900645807,-1893.85,0.00019901,2]
[360607418,1746900645817,-1963.38,0.00019901,2]
[360607419,1746900645827,-693.55,0.00019901,2]
[360607420,1746900645836,-400.0,0.00019901,2]
[360607421,1746900645845,-8011.31,0.00019901,2]
[360607422,1746900645855,-400.0,0.00019901,2]
[360607423,1746900645864,-643.18,0.00019901,2]
[360607424,1746900645873,-560.85,0.00019901,2]
[360607425,1746900645883,-400.0,0.00019901,2]
[360607426,1746900645892,-400.0,0.00019901,2]
[360607427,1746900645901,-400.0,0.00019901,2]
[360607428,1746900645911,-400.0,0.00019901,2]
[360607429,1746900645921,-400.0,0.00019901,2]
[360607430,1746900645930,-400.0,0.00019901,2]
[360607431,1746900645939,-400.0,0.00019901,2]
[360607432,1746900645949,-958.87,0.00019901,2]
[360607433,1746900645961,-764.64,0.00019901,2]
[360607434,1746900645971,-400.0,0.00019901,2]
[360607435,1746900645981,-400.0,0.00019901,2]
[360607436,1746900645990,-1811.79,0.00019901,2]
[360607437,1746900646000,-870.71,0.00019901,2]
[360607438,1746900646010,-648.51,0.00019901,2]
[360607439,1746900646019,-3310.87,0.00019901,2]
[360607440,1746900646029,-2488.93,0.00019901,2]
[360607441,1746900646038,-679.49,0.00019901,2]
[360607442,1746900646048,-433.56,0.00019901,2]
[360607443,1746900646058,-3108.48,0.00019901,2]
[360607444,1746900646068,-8355.37,0.00019901,2]
[360607445,1746900646078,-400.0,0.00019901,2]
[360607446,1746900646087,-543.62,0.00019901,2]
[360607447,1746900646097,-400.0,0.00019901,2]
[360607448,1746900646106,-1525.55,0.00019901,2]
[360607449,1746900646116,-400.0,0.00019901,2]
[360607450,1746900646126,-997.89,0.00019901,2]